bitfinex-derivatives/quotes_ETHF0:USTF0_20251028
["timestamp","ask_amount","ask_price","bid_price","bid_amount"]
[1761669430587,0.00203523,4125.2,4124.4,0.43643]
[1761669430786,0.00203523,4125.2,4124.6,0.43641]
[1761669431174,0.00203523,4125.2,4124.7,0.0728]
[1761669431587,0.00203523,4125.2,4124.8,0.0728]
[1761669431887,0.00203523,4125.2,4124.7,0.0728]
[1761669432080,0.00203523,4125.2,4124.4,0.43643]
[1761669432385,0.00203523,4125.2,4124.5,0.0728]
[1761669432588,0.00203523,4125.2,4124.3,0.43644]
[1761669433086,0.00203523,4125.2,4123.9,4.633]
[1761669433483,0.00203523,4125.2,4124.1,1.09118]
[1761669433684,0.87075503,4127.3,4125.0,0.43637]
[1761669433988,3.1454464,4127.2,4125.1,0.0728]
[1761669434186,0.52569137,4127.1,4124.8,0.43639]
[1761669434382,0.52569137,4127.0,4124.9,0.50918]
[1761669434589,0.52569137,4126.9,4125.0,0.43637]
[1761669434782,0.52569137,4126.8,4125.0,0.43637]
[1761669434983,0.52569137,4126.7,4125.0,0.43637]
[1761669435192,0.00215531,4127.0,4124.8,0.43639]
[1761669435385,0.52506101,4126.9,4124.9,0.43638]
[1761669435687,0.52506101,4126.9,4124.3,3.16981881]
[1761669435688,0.52506101,4126.8,4125.0,0.43637]
[1761669435887,0.00215531,4127.0,4124.5,1.09108]
[1761669436090,0.52498702,4126.9,4124.8,0.43639]
[1761669436388,0.52498702,4126.8,4124.8,0.4364]
[1761669436582,0.52498702,4126.7,4124.0,3.18189754]
[1761669436776,0.52498702,4126.6,4123.8,4.629]
[1761669436984,0.52498702,4126.5,4123.8,4.629]
[1761669437189,0.52498702,4126.4,4123.4,0.43654]
[1761669437488,0.87075503,4126.3,4123.4,0.43654]
[1761669437677,0.52498702,4126.2,4123.6,0.43652]
[1761669437878,1.21998702,4126.1,4123.6,0.43652]
[1761669438086,0.52498702,4126.0,4123.0,0.348]
[1761669438293,1.39574205,4125.9,4122.8,0.43661]
[1761669438481,0.87075503,4125.8,4122.4,14.12793999]
[1761669438684,0.87075503,4125.5,4122.6,0.43663]
[1761669438988,0.52492955,4125.4,4122.5,3.867]
[1761669439180,0.52492955,4125.4,4122.7,0.43662]
[1761669439587,0.52492955,4125.4,4122.8,0.43661]
[1761669439783,0.52492955,4125.4,4122.5,0.0021376]
[1761669440192,0.52492955,4125.4,4122.5,0.4387776]
[1761669440382,1.39568458,4125.4,4122.5,0.0021376]
[1761669440589,0.52492955,4125.3,4122.8,0.43661]
[1761669440888,1.98475503,4125.5,4122.8,0.43661]
[1761669440889,0.52492955,4125.2,4122.8,0.43661]
[1761669441091,0.52492955,4125.1,4122.5,1.4437276]
[1761669441291,0.52492955,4125.0,4123.0,0.43659]
[1761669441484,0.52492955,4124.9,4123.0,0.43659]
[1761669441684,0.87075503,4125.6,4122.8,1.09153]
[1761669441885,2.52801661,4125.5,4122.8,1.09153]
[1761669442092,0.52501661,4125.4,4123.5,0.43653]
[1761669442393,0.52501661,4125.4,4122.5,0.3521376]
[1761669442394,0.52501661,4125.3,4122.5,0.3521376]
[1761669442587,0.52501661,4125.2,4123.0,0.43659]
[1761669442788,0.52501661,4125.1,4122.5,0.3521376]
[1761669443089,0.52501661,4125.0,4122.7,0.43662]
[1761669443284,0.52501661,4124.9,4122.5,0.3521376]
[1761669443490,0.418,4125.1,4123.1,0.43657]
[1761669443690,0.52515784,4125.0,4123.3,0.43655]
[1761669443992,1.542,4125.3,4122.5,0.3521376]
[1761669444293,0.52516393,4125.2,4122.8,0.4366]
[1761669444591,0.52516393,4125.1,4122.6,0.43662]
[1761669444794,0.52516393,4125.0,4122.8,0.43661]
[1761669444994,0.52516393,4124.9,4122.8,0.43661]
[1761669445193,0.52516393,4124.8,4122.5,0.3521376]
[1761669445390,0.52516393,4124.7,4122.6,0.43662]
[1761669445690,3.72875503,4125.3,4122.6,0.43662]
[1761669445893,0.5254951,4125.2,4122.8,0.43661]
[1761669446095,0.5254951,4125.1,4122.6,0.43662]
[1761669446297,0.5254951,4125.0,4122.6,0.43662]
[1761669446488,0.5254951,4124.9,4122.5,0.3521376]
[1761669446795,0.5254951,4124.8,4122.9,0.43659]
[1761669446990,3.393,4125.2,4123.0,0.43658]
[1761669447193,0.52564931,4125.1,4123.0,0.43658]
[1761669447497,0.52564931,4125.0,4123.0,0.43658]
[1761669447695,0.52564931,4124.9,4123.0,0.43658]
[1761669447898,0.52564931,4124.8,4123.0,0.43658]
[1761669448092,0.52564931,4124.7,4123.0,0.43658]
[1761669448291,0.52564931,4124.6,4122.7,0.43661]
[1761669448593,0.87075503,4125.2,4122.9,0.4366]
[1761669448791,0.52606158,4125.1,4122.8,0.43661]
[1761669448992,0.52606158,4125.0,4122.8,0.43661]
[1761669449292,0.52606158,4124.9,4122.5,0.0021376]
[1761669449490,0.87075503,4124.6,4122.5,0.0021376]
[1761669449685,0.52606158,4124.9,4122.5,0.0021376]
[1761669449686,0.87075503,4124.2,4122.5,0.0021376]
[1761669449889,0.87075503,4123.9,4122.5,0.0021376]
[1761669450097,0.87075503,4123.7,4122.5,0.0021376]
[1761669450296,0.52606158,4123.6,4122.5,0.0021376]
[1761669450688,0.52606158,4123.5,4122.5,0.0021376]
[1761669450891,0.52606158,4123.4,4122.5,0.0021376]
[1761669451090,0.52606158,4123.3,4122.5,0.0021376]
[1761669451400,0.52653583,4123.2,4122.5,0.0021376]
[1761669451601,0.22292752,4123.7,4122.5,0.0021376]
[1761669451799,0.52654371,4123.6,4122.5,0.0021376]
[1761669452000,0.52654371,4123.5,4122.5,0.0021376]
[1761669452300,0.52654371,4123.4,4122.5,0.0021376]
[1761669452599,0.52654371,4123.3,4122.5,0.0021376]
[1761669452799,0.52654371,4123.2,4122.5,0.0021376]
[1761669453091,0.52654371,4123.1,4120.8,0.283]
[1761669453296,0.52654371,4123.0,4120.9,0.43681]
[1761669453497,0.52654371,4122.9,4120.8,0.283]
[1761669453694,0.87075503,4123.6,4121.0,1.092]
[1761669454000,0.52679463,4123.5,4121.5,0.43674]
[1761669454195,0.52679463,4123.4,4121.5,0.43957671]
[1761669454499,0.52679463,4123.3,4121.5,0.43957671]
[1761669454793,1.97575503,4123.7,4121.5,0.43957671]
[1761669454794,0.52679463,4123.2,4121.5,0.00283671]
[1761669454994,1.51827319,4123.9,4121.7,0.43672]
[1761669454995,0.52672414,4123.1,4121.7,0.43672]
[1761669455186,0.87075503,4123.8,4121.7,0.43672]
[1761669455391,0.52679997,4123.7,4121.5,0.00283671]
[1761669455594,0.52679997,4123.6,4121.5,0.00283671]
[1761669455801,1.09063756,4123.9,4121.6,1.09185]
[1761669455802,0.52679997,4123.5,4121.6,1.09185]
[1761669455994,0.00291553,4123.9,4122.3,0.43666]
[1761669456192,0.52674553,4123.8,4122.2,0.43667]
[1761669456499,0.52674553,4123.7,4122.7,0.43662]
[1761669456698,0.00291553,4123.9,4122.1,1.118]
[1761669456898,0.00291553,4123.9,4122.3,1.09164]
[1761669457206,0.00291553,4123.9,4122.4,1.09163]
[1761669457401,0.00291553,4123.9,4123.2,0.43656]
[1761669458103,0.00291553,4123.9,4122.6,1.09156]
[1761669458503,0.00291553,4123.9,4122.8,1.09153]
[1761669458699,0.00291553,4123.9,4123.1,0.43657]
[1761669459098,0.00291553,4123.9,4122.6,1.09158]
[1761669459099,0.00291553,4123.9,4123.2,0.43656]
[1761669459297,0.00291553,4123.9,4121.9,1.28326133]
[1761669459298,0.00291553,4123.9,4121.8,2.37505133]
[1761669459498,0.00291553,4123.9,4121.7,4.129]
[1761669459499,0.52689062,4123.8,4121.7,4.129]
[1761669459705,0.00291553,4123.9,4122.6,0.43663]
[1761669459906,0.00291553,4123.9,4122.2,1.09168]
[1761669460205,0.00291553,4123.9,4121.8,1.09179]
[1761669460405,0.00291553,4123.9,4122.4,0.43665]
[1761669460608,0.00291553,4123.9,4121.8,1.09179]
[1761669460906,0.52697655,4123.8,4122.5,0.43663]
[1761669461098,0.00291553,4123.9,4123.1,0.02302197]
[1761669461300,0.52712469,4123.8,4123.1,0.02302197]
[1761669461505,0.00291553,4123.9,4123.1,0.02302197]
[1761669461701,0.5271247,4123.8,4123.1,0.02302197]
[1761669461901,0.00291553,4123.9,4123.1,0.02302197]
[1761669462100,0.52712469,4123.8,4123.1,0.02302197]
[1761669462298,0.52728291,4123.7,4123.1,0.02302197]
[1761669462503,0.00291553,4123.9,4123.1,0.02302197]
[1761669462805,0.52728205,4123.8,4123.1,0.02302197]
[1761669463006,0.52728205,4123.7,4123.1,0.02302197]
[1761669463207,0.00291553,4123.9,4123.1,0.02302197]
[1761669463407,0.52747258,4123.8,4123.1,0.02302197]
[1761669463600,0.52747258,4123.7,4123.1,0.02302197]
[1761669463803,0.00291553,4123.9,4123.1,0.02302197]
[1761669464106,0.52747258,4123.8,4123.1,0.02302197]
[1761669464306,0.52747258,4123.7,4123.1,0.02302197]
[1761669464506,0.52747258,4123.6,4123.1,0.02302197]
[1761669464715,0.00291553,4123.9,4123.1,0.02302197]
[1761669465007,0.52778244,4123.8,4123.1,0.02302197]
[1761669465207,0.52778244,4123.7,4123.1,0.02302197]
[1761669465511,0.52778244,4123.6,4123.1,0.02302197]
[1761669465711,0.52778244,4123.5,4123.1,0.02302197]
[1761669466011,0.00291553,4123.9,4123.1,0.02302197]
[1761669466205,0.52815653,4123.8,4123.1,0.02302197]
[1761669466407,0.52815653,4123.7,4123.1,0.02302197]
[1761669466605,0.52815653,4123.6,4123.1,0.02302197]
[1761669466908,0.00291553,4123.9,4123.1,0.02302197]
[1761669466909,0.52815653,4123.5,4123.1,0.02302197]
[1761669467104,0.52815653,4123.4,4123.1,0.02302197]
[1761669467306,0.52815653,4123.3,4123.1,0.02302197]
[1761669467505,0.00291553,4123.9,4123.1,0.02302197]
[1761669467705,0.52891828,4123.8,4123.1,0.02302197]
[1761669467909,0.52891828,4123.7,4123.1,0.02302197]
[1761669468105,0.52891828,4123.6,4123.1,0.02302197]
[1761669468303,0.52891828,4123.5,4123.1,0.02302197]
[1761669468508,0.52891828,4123.4,4123.1,0.02302197]
[1761669468707,0.87367056,4123.9,4123.1,0.02302197]
[1761669468708,0.52907258,4123.3,4123.1,0.02302197]
[1761669468912,0.00291553,4123.9,4123.1,0.02302197]
[1761669468913,0.87367056,4123.9,4123.1,0.02302197]
[1761669469112,0.52909647,4123.8,4123.1,0.02302197]
[1761669469309,0.52909647,4123.7,4123.1,0.02302197]
[1761669469512,0.52909647,4123.6,4123.1,0.02302197]
[1761669469712,0.52909647,4123.5,4123.1,0.02302197]
[1761669469911,0.52909647,4123.4,4123.1,0.02302197]
[1761669470215,0.52909647,4123.3,4123.1,0.02302197]
[1761669470416,0.52909647,4123.2,4123.1,0.02302197]
[1761669470609,0.52909647,4123.7,4123.1,0.02302197]
[1761669470811,0.52909647,4123.6,4123.1,0.02302197]
[1761669471011,0.52909647,4123.5,4123.1,0.02302197]
[1761669471308,0.52909647,4123.4,4123.1,0.02302197]
[1761669471508,0.52909647,4123.3,4123.1,0.02302197]
[1761669471709,0.52909647,4123.2,4123.1,0.02302197]
[1761669472106,0.87367056,4123.9,4123.1,0.02302197]
[1761669472306,0.52930671,4123.8,4123.1,0.02302197]
[1761669472507,0.52930671,4123.7,4123.1,0.02302197]
[1761669472703,0.52930671,4123.6,4123.1,0.02302197]
[1761669473008,0.52930671,4123.5,4123.1,0.02302197]
[1761669473204,0.52930671,4123.4,4123.1,0.02302197]
[1761669473518,0.00291553,4123.9,4123.1,0.02302197]
[1761669473719,0.52929091,4123.8,4123.1,0.02302197]
[1761669473916,0.52929091,4123.7,4123.1,0.02302197]
[1761669474120,0.52929091,4123.6,4123.1,0.02302197]
[1761669474417,0.00291553,4123.9,4123.1,0.02302197]
[1761669474612,0.52934709,4123.8,4123.1,0.02302197]
[1761669474815,0.52934709,4123.7,4123.1,0.02302197]
[1761669475019,0.52934709,4123.6,4123.1,0.02302197]
[1761669475314,0.00291553,4123.9,4123.1,0.02302197]
[1761669475315,0.52934709,4123.5,4123.1,0.02302197]
[1761669475512,0.52934709,4123.4,4123.1,0.02302197]
[1761669475714,0.52934709,4123.3,4123.1,0.02302197]
[1761669475914,0.52934709,4123.2,4123.1,0.02302197]
[1761669476312,0.52934709,4123.6,4123.1,0.02302197]
[1761669476513,0.52934709,4123.5,4123.1,0.02302197]
[1761669476815,0.52934709,4123.4,4123.1,0.02302197]
[1761669477115,0.52934709,4123.3,4123.1,0.02302197]
[1761669477416,0.87075503,4123.8,4123.1,0.02302197]
[1761669477417,0.52934709,4123.2,4123.1,0.02302197]
[1761669477817,1.40010212,4123.8,4123.1,0.02302197]
[1761669478115,0.52934709,4123.7,4123.1,0.02302197]
[1761669478415,0.52934709,4123.6,4123.1,0.02302197]
[1761669478719,0.52934709,4123.5,4123.1,0.02302197]
[1761669479015,0.52934709,4123.4,4123.1,0.02302197]
[1761669479212,0.52934709,4123.3,4123.1,0.02302197]
[1761669479415,0.52934709,4123.2,4123.1,0.02302197]
[1761669479818,0.87075503,4123.7,4123.1,0.02302197]
[1761669480017,0.52934709,4123.6,4123.1,0.02302197]
[1761669480315,0.52934709,4123.5,4123.1,0.02302197]
[1761669480524,0.52934709,4123.4,4123.1,0.02302197]
[1761669480818,0.52934709,4123.3,4123.1,0.02302197]
[1761669481016,0.52934709,4123.2,4123.1,0.02302197]
[1761669481506,0.87075503,4123.6,4123.1,0.02302197]
[1761669481712,0.87075503,4123.3,4123.1,0.01854567]
[1761669481918,0.87075503,4123.2,4123.1,0.01854567]
[1761669482110,0.52934709,4123.2,4123.1,0.01854567]
[1761669482519,1.72294253,4123.6,4123.1,0.01854567]
[1761669482717,1.30701248,4123.2,4123.1,0.01854567]
[1761669483017,0.52934709,4123.2,4123.1,0.01854567]
[1761669483813,1.30701248,4123.4,4123.1,0.01854567]
[1761669484314,0.87142244,4123.2,4123.1,0.01854567]
[1761669484710,0.8715163,4123.2,4123.1,0.01854567]
[1761669485218,0.52934709,4123.2,4123.1,0.01854567]
[1761669485420,1.40086339,4123.4,4123.1,0.01854567]
[1761669485613,0.52934709,4123.3,4123.1,0.01854567]
[1761669485818,1.40086339,4123.3,4123.1,0.01854567]
[1761669486013,0.52934709,4123.2,4123.1,0.01854567]
[1761669486215,0.8715163,4123.3,4123.1,0.01854567]
[1761669487915,1.40086339,4123.3,4123.1,0.01854567]
[1761669488218,1.40086339,4123.2,4123.1,0.01854567]
[1761669488419,0.8715163,4123.2,4123.1,0.01854567]
[1761669489023,0.52934709,4123.2,4123.1,0.01854567]
[1761669489227,1.40086339,4123.2,4123.1,0.01854567]
[1761669489419,0.8715163,4123.2,4123.1,0.01854567]
[1761669490718,1.30701248,4123.2,4123.1,0.01854567]
[1761669490925,0.52934709,4123.2,4123.1,0.01854567]
[1761669491424,1.30783939,4123.2,4123.1,0.01854567]
[1761669491620,1.83718648,4123.2,4123.1,0.01854567]
[1761669491823,0.52934709,4123.2,4123.1,0.01854567]
[1761669492223,1.72294253,4123.5,4123.1,0.01854567]
[1761669492424,2.32508962,4123.4,4123.1,0.01854567]
[1761669492626,0.52934709,4123.3,4123.1,0.01854567]
[1761669492828,1.72294253,4123.4,4123.1,0.01854567]
[1761669492829,0.52934709,4123.2,4123.1,0.01854567]
[1761669493217,1.72294253,4123.4,4123.1,0.01854567]
[1761669494128,0.0728,4123.3,4121.5,0.00283671]
[1761669494319,0.87159818,4122.3,4121.5,0.00283671]
[1761669494516,0.87159818,4122.1,4121.5,0.00283671]
[1761669494741,5.14534709,4122.0,4121.5,0.00283671]
[1761669494925,0.52934709,4121.9,4121.5,0.00283671]
[1761669495326,0.87159818,4121.8,4121.5,0.00283671]
[1761669495522,0.52934709,4121.7,4121.5,0.00283671]
[1761669495927,0.52934709,4121.6,4121.5,0.00283671]
[1761669496226,4.616,4121.8,4121.5,0.00283671]
[1761669496428,0.52934709,4121.7,4121.5,0.00283671]
[1761669496929,0.52934709,4121.6,4121.5,0.00283671]
[1761669497226,0.52934709,4121.8,4121.5,0.00283671]
[1761669497424,0.52934709,4121.7,4121.5,0.00283671]
[1761669497723,0.52934709,4121.6,4121.5,0.00283671]
[1761669497930,0.52934709,4122.0,4121.5,0.00283671]
[1761669498129,0.52934709,4121.9,4121.5,0.00283671]
[1761669498430,0.52934709,4121.8,4121.5,0.00283671]
[1761669498631,0.52934709,4121.7,4121.5,0.00283671]
[1761669498825,0.87159818,4122.3,4121.5,0.00283671]
[1761669499034,0.52963493,4122.2,4121.5,0.00283671]
[1761669499224,0.52963493,4122.1,4121.5,0.00283671]
[1761669499425,0.52963493,4122.0,4121.5,0.00283671]
[1761669499731,0.87159818,4123.0,4121.6,0.0728]
[1761669499931,0.87159818,4123.6,4121.5,0.43958671]
[1761669500126,0.87159818,4123.3,4121.7,0.43672]
[1761669500321,0.52939726,4123.2,4121.6,0.43673]
[1761669500526,0.52939726,4123.2,4121.5,0.43957671]
[1761669500729,0.52939726,4123.2,4121.7,0.43672]
[1761669501123,0.52939726,4123.2,4121.6,0.43673]
[1761669501328,1.40099544,4123.2,4121.5,0.00283671]
[1761669501528,1.40099544,4123.1,4121.5,0.00283671]
[1761669501728,4.863603,4123.7,4121.5,0.00283671]
[1761669501729,1.40099544,4123.0,4121.5,0.43957671]
[1761669501927,5.14439726,4122.9,4121.5,0.43957671]
[1761669502130,0.52939726,4122.8,4121.7,0.43672]
[1761669502431,0.52939726,4122.8,4121.8,0.43671]
[1761669502629,0.52939726,4122.8,4121.9,0.4367]
[1761669503135,0.52939726,4122.8,4121.7,0.43672]
[1761669504029,0.52939726,4122.8,4121.5,0.00283671]
[1761669504234,0.52939726,4122.7,4121.8,0.43671]
[1761669504530,0.87159818,4123.2,4121.7,1.09182]
[1761669504531,0.52939726,4122.6,4121.7,1.09182]
[1761669504726,0.00291553,4123.9,4122.2,1.09168]
[1761669504931,0.52964916,4123.8,4122.6,1.09157]
[1761669505133,0.52964916,4123.7,4122.1,1.28326133]
[1761669505430,0.52964916,4123.6,4123.0,0.43658]
[1761669505631,0.00291553,4123.9,4123.0,0.43658]
[1761669505834,0.52956086,4123.8,4123.1,0.43657]
[1761669506136,0.52956086,4123.7,4123.1,0.43657]
[1761669506437,0.00291553,4123.9,4123.4,0.43654]
[1761669506829,0.00291553,4123.9,4123.7,0.43651]
[1761669507035,0.87159818,4125.3,4123.3,1.09139]
[1761669507336,0.52936798,4125.2,4123.3,1.09139]
[1761669507633,0.87159818,4125.4,4123.9,0.43649]
[1761669507634,0.52936798,4125.1,4123.9,0.43649]
[1761669507838,0.52936798,4125.0,4123.9,0.43649]
[1761669508138,0.52936798,4124.9,4124.0,0.43648]
[1761669508324,0.52936798,4124.8,4122.9,1.28326133]
[1761669508528,0.0029635,4125.0,4123.0,1.09146]
[1761669508735,0.52870063,4124.9,4123.7,0.43651]
[1761669508935,0.52870063,4124.8,4124.1,0.43647]
[1761669509128,0.0029635,4125.0,4123.1,1.28326133]
[1761669509432,0.52863529,4124.9,4122.8,1.28326133]
[1761669509631,0.0029635,4125.0,4122.6,1.71989133]
[1761669509632,0.52863529,4124.8,4122.6,1.71989133]
[1761669509836,0.87159818,4124.8,4122.2,5.89526133]
[1761669510038,0.87159818,4124.5,4122.1,0.43668]
[1761669510238,0.87159818,4124.1,4122.0,0.43669]
[1761669510539,0.0029635,4125.0,4121.7,4.612]
[1761669510540,3.54523347,4124.0,4121.7,5.04872]
[1761669510741,3.54423347,4123.9,4121.9,0.4367]
[1761669510936,0.52863529,4123.8,4121.9,0.4367]
[1761669511238,1.40023347,4123.8,4122.0,0.43669]
[1761669511443,0.52863529,4123.7,4122.0,0.43669]
[1761669511641,0.52863529,4123.7,4121.7,4.612]
[1761669511941,0.52863529,4123.7,4121.8,0.43671]
[1761669512132,0.52863529,4123.7,4122.0,0.43669]
[1761669512333,0.52863529,4123.7,4122.1,0.43668]
[1761669512632,0.52863529,4123.6,4122.4,0.43664]
[1761669512832,0.52863529,4123.5,4122.0,0.43669]
[1761669513032,0.52867291,4123.4,4122.0,0.43669]
[1761669513237,0.52867291,4123.3,4122.0,0.43669]
[1761669513431,0.52867291,4123.2,4122.1,0.43668]
[1761669513632,0.52867291,4123.1,4122.1,0.43668]
[1761669513827,0.87159818,4123.8,4121.6,0.43673]
[1761669514033,1.30739728,4124.0,4121.5,0.00283671]
[1761669514034,1.40026837,4123.7,4121.9,0.4367]
[1761669514339,0.52867019,4123.6,4122.0,0.43669]
[1761669514539,0.52867019,4123.5,4121.5,0.00283671]
[1761669514837,0.52867019,4123.4,4121.9,0.4367]
[1761669515032,0.52867019,4123.3,4121.9,0.4367]
[1761669515233,0.52867019,4123.2,4122.0,0.43669]
[1761669515436,0.52867019,4123.1,4121.5,0.00283671]
[1761669515637,0.52867019,4123.0,4121.5,0.43957671]
[1761669515935,0.52867019,4122.9,4121.5,0.43957671]
[1761669516136,0.52867019,4122.8,4121.5,0.43957671]
[1761669516439,0.52867019,4122.7,4121.5,0.43957671]
[1761669516640,0.52867019,4122.6,4121.5,0.00283671]
[1761669516832,0.87159818,4123.5,4121.6,1.09182]
[1761669517032,0.5271996,4123.4,4121.5,1.09469671]
[1761669517242,0.5271996,4123.3,4121.5,0.00283671]
[1761669517432,0.5271996,4123.2,4121.6,1.09184]
[1761669517728,0.5271996,4123.1,4122.4,0.43665]
[1761669517933,0.87159818,4123.8,4121.6,1.09184]
[1761669518133,0.52716321,4123.7,4122.0,0.43669]
[1761669518342,1.39876139,4123.7,4122.0,0.43669]
[1761669518532,0.52716321,4123.6,4122.0,0.43669]
[1761669518741,0.52716321,4123.6,4121.5,0.00283671]
[1761669518938,0.52716321,4123.6,4122.1,0.43668]
[1761669519441,0.52716321,4123.6,4121.9,0.4367]
[1761669519936,0.52716321,4123.6,4122.0,0.43669]
[1761669520135,0.52716321,4123.6,4121.5,0.00283671]
[1761669520343,0.52716321,4123.6,4122.7,0.43662]
[1761669520542,0.52716321,4123.5,4122.3,1.09165]
[1761669520737,0.87159818,4124.2,4121.6,1.35606133]
[1761669520932,0.52709159,4124.1,4123.1,0.43658]
[1761669521130,0.52709159,4124.0,4123.2,0.43656]
[1761669521334,0.87159818,4124.7,4123.4,0.43654]
[1761669521534,0.52700373,4124.6,4123.4,0.43654]
[1761669521736,0.52700373,4124.5,4123.4,0.43654]
[1761669521937,0.52700373,4124.4,4123.4,0.43654]
[1761669522136,0.0029635,4125.0,4123.4,0.43654]
[1761669522340,1.11642165,4125.0,4123.1,0.02302197]
[1761669522644,1.11642165,4125.0,4123.2,0.43656]
[1761669522645,1.39854728,4124.9,4123.2,0.43656]
[1761669522839,0.5269491,4124.8,4123.2,0.43656]
[1761669523144,0.5269491,4124.7,4123.2,0.43656]
[1761669523342,0.5269491,4124.6,4123.2,0.43656]
[1761669523542,0.5269491,4124.5,4123.4,0.43654]
[1761669523744,0.5269491,4124.4,4123.3,0.43655]
[1761669524045,0.52681235,4124.3,4123.1,0.02302197]
[1761669524241,0.0029635,4125.0,4123.5,0.43653]
[1761669524436,0.52675744,4124.9,4123.5,0.43653]
[1761669524748,0.0029635,4125.0,4123.5,0.43653]
[1761669524749,0.52675744,4124.8,4123.5,0.43653]
[1761669524944,0.52675744,4124.7,4123.3,0.43655]
[1761669525131,0.52675744,4124.6,4123.4,0.43654]
[1761669525335,0.52675744,4124.5,4123.4,0.43654]
[1761669525534,0.52675744,4124.4,4123.4,0.43654]
[1761669525739,0.0029635,4125.0,4123.4,0.43654]
[1761669525943,1.12306171,4125.0,4123.1,0.02302197]
[1761669526147,1.39844923,4124.9,4123.1,0.45960197]
[1761669526440,0.52685105,4124.8,4123.3,0.43655]
[1761669526643,0.52685105,4124.7,4123.3,0.43655]
[1761669526844,0.52685105,4124.6,4123.3,0.43655]
[1761669527146,0.52685105,4124.5,4123.4,3.867]
[1761669527345,0.52685105,4124.4,4123.4,3.867]
[1761669527645,0.52685105,4124.3,4123.4,3.867]
[1761669527943,0.87159818,4124.5,4123.4,3.867]
[1761669527944,0.52685105,4124.2,4123.4,3.867]
[1761669528246,0.87159818,4124.5,4123.4,3.867]
[1761669528247,0.52685105,4124.1,4123.4,3.867]
[1761669528438,0.52685105,4124.0,4123.1,3.89002197]
[1761669528642,0.87159818,4124.7,4123.1,4.32659197]
[1761669528842,0.52749826,4124.6,4123.2,0.43657]
[1761669529140,0.52749826,4124.5,4123.2,0.43657]
[1761669529337,0.87159818,4124.5,4123.2,0.43657]
[1761669529537,0.52749826,4124.4,4123.3,4.30355]
[1761669529739,0.52749826,4124.3,4123.3,3.867]
[1761669529945,0.52749826,4124.2,4123.3,3.867]
[1761669530138,0.52749826,4124.1,4123.2,3.867]
[1761669530338,0.87159818,4124.8,4123.2,3.867]
[1761669530535,0.5277438,4124.7,4123.2,3.867]
[1761669530843,0.5277438,4124.6,4123.2,4.30356]
[1761669531035,0.5277438,4124.5,4123.2,4.30356]
[1761669531236,1.55958225,4125.0,4123.2,4.30356]
[1761669531237,0.5277438,4124.4,4123.2,4.30356]
[1761669531437,0.5277438,4124.3,4123.2,4.30356]
[1761669531637,0.5277438,4124.2,4123.2,4.30357]
[1761669531844,0.5277438,4124.1,4123.2,3.867]
[1761669532041,0.5277438,4124.0,4123.2,3.867]
[1761669532250,0.87159818,4124.7,4123.3,0.43655]
[1761669532543,1.39948576,4124.6,4123.2,4.30357]
[1761669532744,0.52788758,4124.5,4123.2,4.30357]
[1761669533340,0.52788758,4124.5,4123.3,3.867]
[1761669533739,1.39948576,4124.5,4123.3,3.867]
[1761669533939,0.52788758,4124.4,4123.3,3.867]
[1761669535643,0.87159818,4124.3,4123.3,3.867]
[1761669535841,0.52788758,4124.2,4123.1,1.11447197]
[1761669536046,0.87159818,4124.8,4123.7,0.43651]
[1761669536341,0.87159818,4124.8,4123.1,1.11445197]
[1761669536342,0.528082,4124.7,4123.1,1.11445197]
[1761669536535,0.528082,4124.6,4123.9,0.43649]
[1761669536743,0.528082,4124.5,4124.1,0.43647]
[1761669537043,0.0029635,4125.0,4123.5,4.603]
[1761669537245,0.0029635,4125.0,4124.1,0.43647]
[1761669537246,0.52799479,4124.9,4124.1,0.43647]
[1761669537444,0.52799479,4124.8,4124.1,0.43647]
[1761669537749,0.52799479,4124.7,4124.2,0.43646]
[1761669537950,0.0029635,4125.0,4124.0,0.43647]
[1761669538246,0.52796973,4124.9,4124.1,0.43647]
[1761669538446,0.52796973,4124.8,4124.1,0.43647]
[1761669538643,0.0029635,4125.0,4124.1,0.43647]
[1761669538844,0.0029635,4125.0,4123.5,4.603]
[1761669538845,0.52791703,4124.9,4123.9,0.43648]
[1761669539035,0.52791703,4124.8,4123.9,0.43648]
[1761669539245,0.0029635,4125.0,4124.0,0.43648]
[1761669539441,0.52786384,4124.9,4123.5,5.69433]
[1761669539645,0.52786384,4124.8,4124.1,0.43646]
[1761669539948,0.0029635,4125.0,4124.1,0.43646]
[1761669540148,0.52784951,4124.9,4124.1,0.43646]
[1761669540447,0.52784951,4124.8,4124.1,0.43646]
[1761669540749,0.0029635,4125.0,4124.1,0.43646]
[1761669540939,0.52785306,4124.9,4123.5,0.43653]
[1761669541140,0.52785306,4124.8,4123.6,0.43652]
[1761669541346,0.52785306,4124.7,4123.7,0.43651]
[1761669541649,0.52785306,4124.6,4124.1,0.43646]
[1761669541941,0.0029635,4125.0,4124.1,0.43646]
[1761669542146,0.5278626,4124.9,4124.3,0.43645]
[1761669542347,0.5278626,4124.8,4124.5,0.43643]
[1761669542545,0.0029635,4125.0,4124.6,0.43642]
[1761669542852,0.0029635,4125.0,4124.5,0.00266165]
[1761669543147,0.0029635,4125.0,4124.8,0.43639]
[1761669543346,0.0029635,4125.0,4124.5,0.00266165]
[1761669544645,0.0029635,4125.0,4124.5,0.43908165]
[1761669544944,0.52782011,4124.9,4124.5,0.00266165]
[1761669545651,0.0029635,4125.0,4124.5,0.00266165]
[1761669547252,0.86930903,4124.9,4124.5,0.00266165]
[1761669547452,0.86930903,4124.8,4124.5,0.00266165]
[1761669547644,0.86930903,4124.7,4124.5,0.00266165]
[1761669547947,0.86930903,4124.7,4123.3,0.43655]
[1761669548147,0.86930903,4124.9,4123.6,0.43652]
[1761669548344,0.86930903,4124.9,4123.3,3.867]
[1761669548651,0.86930903,4124.8,4123.4,0.43654]
[1761669548851,0.86930903,4124.8,4123.3,3.87014628]
[1761669549047,0.86930903,4124.9,4123.7,0.43651]
[1761669549251,0.86930903,4124.8,4123.6,0.43652]
[1761669549645,0.86930903,4124.8,4123.7,0.43651]
[1761669550152,0.86930903,4124.8,4123.5,0.43653]
[1761669550455,0.86930903,4124.7,4123.4,0.43654]
[1761669550655,0.86930903,4124.7,4123.6,0.43652]
[1761669550855,0.86930903,4124.7,4123.3,4.72955271]
[1761669551158,0.86930903,4124.7,4123.6,0.43652]
[1761669551456,0.86930903,4124.6,4123.7,0.43651]
[1761669551953,0.86930903,4124.6,4123.6,0.43652]
[1761669552948,0.86930903,4124.6,4123.7,0.43651]
[1761669553553,0.86930903,4124.6,4123.5,0.43653]
[1761669553755,0.86930903,4124.6,4123.6,0.43652]
[1761669554156,0.86930903,4124.6,4123.7,0.43651]
[1761669555155,0.86930903,4124.6,4123.3,4.72955271]